bitfinex/quotes_SOLUSD_20250531
["timestamp","ask_amount","ask_price","bid_price","bid_amount"]
[1748681797532,18.25501699,155.21,155.17,36.90466585]
[1748681798425,45.27258937,155.22,155.17,36.90466585]
[1748681799106,45.27258937,155.22,155.18,6.44412939]
[1748681800922,18.25501699,155.21,155.16,18.25501699]
[1748681801130,18.25501699,155.2,155.15,24.70039243]
[1748681801927,18.25501699,155.2,155.16,18.25501699]
[1748681803003,18.25501699,155.2,155.17,6.44454469]
[1748681803715,18.25501699,155.21,155.17,6.44454469]
[1748681805800,45.27258937,155.22,155.17,24.69956168]
[1748681806111,27.01757238,155.22,155.18,18.25501699]
[1748681806624,27.01757238,155.22,155.19,6.44371415]
[1748681808141,45.27258937,155.22,155.19,6.44371415]
[1748681808637,18.25501699,155.22,155.18,6.44412939]
[1748681813033,6.44167734,155.24,155.18,6.44412939]
[1748681813237,18.25501699,155.22,155.18,6.44412939]
[1748681818921,18.25501699,155.22,155.18,24.69914638]
[1748681819936,11.68876568,155.22,155.18,18.13289507]
[1748681820650,11.68876568,155.23,155.18,34.24321856]
[1748681821016,11.68876568,155.25,155.2,11.68876568]
[1748681821411,23.20216597,155.26,155.21,11.68876568]
[1748681821941,29.76799029,155.26,155.21,18.25459]
[1748681822723,29.76799029,155.26,155.22,6.44246875]
[1748681825526,29.76799029,155.26,155.22,24.69705875]
[1748681826346,18.25459,155.26,155.22,24.69705875]
[1748681828531,18.25459,155.26,155.22,6.44246875]
[1748681828730,45.93971356,155.29,155.22,24.69705875]
[1748681828943,45.93971356,155.29,155.24,18.25459]
[1748681828944,18.25459,155.29,155.24,18.25459]
[1748681829251,18.25459,155.29,155.25,18.25459]
[1748681829426,18.25459,155.29,155.25,24.69556716]
[1748681829822,24.69417041,155.29,155.24,24.69616287]
[1748681830040,18.25459,155.28,155.24,24.69616287]
[1748681830541,18.25459,155.27,155.23,18.25459]
[1748681830924,18.25459,155.27,155.22,18.64964886]
[1748681831124,18.25459,155.27,155.23,18.25459]
[1748681831326,18.25459,155.27,155.22,18.64964886]
[1748681831549,18.25459,155.27,155.23,24.69643791]
[1748681831936,18.25459,155.27,155.23,6.44184791]
[1748681832145,18.25459,155.27,155.23,24.69643791]
[1748681832652,18.25459,155.28,155.23,24.69643791]
[1748681833053,18.25459,155.29,155.25,18.25459]
[1748681833753,18.25459,155.29,155.24,36.90423886]
[1748681834746,18.25459,155.29,155.25,6.44122383]
[1748681834943,24.69421084,155.29,155.24,43.34575255]
[1748681835143,18.25459,155.28,155.23,26.0]
[1748681835348,18.25459,155.27,155.23,50.69664277]
[1748681836550,24.69468225,155.28,155.23,50.69664277]
[1748681837463,6.43975196,155.29,155.23,50.69664277]
[1748681837673,18.25459,155.28,155.24,18.25459]
[1748681838869,18.25459,155.28,155.24,24.69608946]
[1748681842363,18.25459,155.29,155.25,18.25459]
[1748681844064,18.25459,155.29,155.26,6.44080896]
[1748681844266,19.86599,155.3,155.26,6.44080896]
[1748681846662,1.6114,155.3,155.26,6.44080896]
[1748681846866,18.25459,155.29,155.26,6.44080896]
[1748681847954,18.25459,155.29,155.25,24.69568189]
[1748681848157,18.25459,155.29,155.25,6.44109189]
[1748681851982,11.67838057,155.29,155.25,6.44109189]
[1748681853481,18.1180551,155.29,155.24,6.44152411]
[1748681853853,11.67838057,155.29,155.24,6.44152411]
[1748681854451,11.67838057,155.29,155.24,18.11990468]
[1748681856078,13.28978057,155.3,155.24,18.11990468]
[1748681857274,11.67838057,155.27,155.23,16.6818318]
[1748681857470,16.98792849,155.31,155.26,11.67838057]
[1748681857673,28.66630906,155.31,155.25,11.67838057]
[1748681857982,6.43835583,155.32,155.25,11.67838057]
[1748681858155,18.1167364,155.32,155.25,11.67838057]
[1748681858351,11.67838057,155.31,155.25,6.44122383]
[1748681859265,18.11738981,155.31,155.25,6.44122383]
[1748681861055,18.11738981,155.31,155.23,65.80513431]
[1748681861056,11.67838057,155.29,155.23,10.24]
[1748681861867,11.67838057,155.28,155.23,10.24]
[1748681862062,18.11855508,155.28,155.23,16.68201878]
[1748681864068,24.6921016,155.28,155.23,16.68201878]
[1748681865929,24.6921016,155.28,155.23,10.24]
[1748681866388,18.25192709,155.27,155.23,10.24]
[1748681866692,18.25192709,155.25,155.2,36.90157595]
[1748681867280,18.25192709,155.25,155.2,24.69505424]
[1748681868277,24.69332711,155.25,155.2,24.69505424]
[1748681868482,18.25192709,155.25,155.2,24.69505424]
[1748681868695,18.25192709,155.26,155.21,18.25192709]
[1748681868899,18.25192709,155.27,155.22,18.25192709]
[1748681870317,24.69236353,155.27,155.22,24.6943327]
[1748681871417,18.25192709,155.26,155.21,24.69481092]
[1748681872400,6.44043644,155.27,155.21,18.64964886]
[1748681872401,18.25192709,155.25,155.21,18.64964886]
[1748681873820,24.69279278,155.26,155.21,43.34421202]
[1748681879819,18.25192709,155.25,155.21,43.34421202]
[1748681880615,18.25192709,155.24,155.2,6.44315005]
[1748681886012,11.6856959,155.24,155.2,6.44315005]
[1748681886538,18.12771784,155.24,155.2,18.64964886]
[1748681887936,18.12771784,155.24,155.2,36.77854495]
[1748681888624,6.44202194,155.24,155.2,36.77854495]
[1748681889125,18.12708802,155.25,155.2,36.77854495]
[1748681891931,18.12708802,155.25,155.18,18.2085]
[1748681891932,11.6856959,155.23,155.18,10.24]
[1748681892336,11.6856959,155.23,155.18,21.9256959]
[1748681893028,11.6856959,155.24,155.18,28.36975245]
[1748681894029,18.12763794,155.24,155.18,28.36975245]
[1748681894224,11.6856959,155.23,155.18,28.36975245]
[1748681895029,18.1277556,155.23,155.19,18.64964886]
[1748681896132,18.1277556,155.23,155.19,25.09330353]
[1748681897322,11.6856959,155.23,155.19,25.09330353]
[1748681898724,18.12778088,155.23,155.19,18.64964886]
[1748681900824,18.12778088,155.23,155.18,28.36978691]
[1748681900825,18.12778088,155.23,155.18,10.24]
[1748681901022,11.6856959,155.21,155.18,10.24]
[1748681901221,11.6856959,155.2,155.18,10.24]
[1748681901430,11.6856959,155.2,155.16,18.64964886]
[1748681902315,18.12892609,155.21,155.16,36.78014098]
[1748681902926,11.6856959,155.22,155.17,11.6856959]
[1748681904439,11.6856959,155.22,155.17,18.12992264]
[1748681905038,18.12827202,155.22,155.17,18.12992264]
[1748681905343,18.12827202,155.22,155.17,6.44422674]
[1748681905344,11.6856959,155.21,155.17,6.44422674]
[1748681905733,11.6856959,155.21,155.16,11.6856959]
[1748681905734,11.6856959,155.2,155.16,6.44485993]
[1748681906422,11.6856959,155.19,155.15,25.09496208]
[1748681908051,11.6856959,155.18,155.15,18.64964886]
[1748681908748,11.6856959,155.18,155.14,10.22]
[1748681908749,11.6856959,155.16,155.14,10.22]
[1748681909042,6.44412957,155.18,155.14,10.22]
[1748681909247,11.6856959,155.16,155.13,18.64964886]
[1748681910547,11.6856959,155.17,155.13,25.09583983]
[1748681913248,18.13027807,155.17,155.13,25.09583983]
[1748681913838,11.6856959,155.16,155.13,25.09583983]
[1748681914838,18.1306979,155.16,155.12,32.44660696]
[1748681915228,11.6856959,155.16,155.12,32.44660696]
[1748681919149,18.13065738,155.16,155.12,32.44660696]
[1748681919453,11.6856959,155.16,155.12,32.44660696]
[1748681927966,11.6856959,155.16,155.12,44.13230286]
[1748681928771,18.13069543,155.16,155.12,44.13230286]
[1748681928972,11.6856959,155.15,155.11,18.64964886]
[1748681929274,11.6856959,155.15,155.11,25.09661816]
[1748681930173,18.13109156,155.15,155.11,25.09661816]
[1748681930356,11.6856959,155.15,155.11,25.09661816]
[1748681930875,11.6856959,155.15,155.11,36.78231406]
[1748681931170,18.13080649,155.16,155.11,36.78231406]
[1748681934072,11.6856959,155.16,155.11,36.78231406]
[1748681936767,11.6856959,155.15,155.11,25.09661816]
[1748681938471,11.6856959,155.16,155.11,36.78231406]
[1748681939775,18.13107134,155.15,155.11,25.09661816]
[1748681940073,11.6856959,155.15,155.11,25.09661816]
[1748681940789,18.13083601,155.16,155.11,36.78231406]
[1748681941078,6.44412939,155.18,155.12,30.33534476]
[1748681941367,11.84968746,155.19,155.13,11.6856959]
[1748681941368,29.97923745,155.19,155.13,11.6856959]
[1748681941779,29.97923745,155.19,155.14,11.6856959]
[1748681941976,11.6856959,155.18,155.14,6.44559316]
[1748681942857,18.29354155,155.19,155.13,11.6856959]
[1748681942858,11.6856959,155.17,155.13,6.44603321]
[1748681943176,11.6856959,155.16,155.12,25.09612079]
[1748681943373,11.6856959,155.16,155.12,18.64964886]
[1748681943767,11.6856959,155.15,155.12,18.64964886]
[1748681944461,11.6856959,155.14,155.1,36.22]
[1748681944664,11.6856959,155.13,155.1,36.22]
[1748681944967,11.6856959,155.13,155.09,18.64964886]
[1748681945171,6.44556395,155.15,155.09,18.64964886]
[1748681945172,11.6856959,155.12,155.09,18.64964886]
[1748681945374,11.6856959,155.1,155.07,18.64964886]
[1748681946081,11.6856959,155.08,155.06,10.22]
[1748681946272,11.6856959,155.08,155.05,18.64964886]
[1748681947985,18.29809688,155.08,155.04,6.44990002]
[1748681951369,18.29809688,155.08,155.05,18.64964886]
[1748681953387,18.29809688,155.08,155.05,6.44940561]
[1748681953588,18.29809688,155.07,155.03,25.099846]
[1748681953890,24.74681399,155.07,155.03,18.64964886]
[1748681954264,18.29809688,155.06,155.03,18.64964886]
[1748681956191,24.74721559,155.06,155.03,18.64964886]
[1748681956886,18.29809688,155.06,155.03,18.64964886]
[1748681957396,24.74723556,155.06,155.03,18.64964886]
[1748681958196,18.29809688,155.05,155.02,10.22]
[1748681958486,18.29809688,155.05,155.02,18.64964886]
[1748681958905,18.29809688,155.04,155.02,18.64964886]
[1748681959093,18.29809688,155.04,154.99,18.29809688]
[1748681959094,18.29809688,155.03,154.99,18.64964886]
[1748681959584,18.29809688,155.03,154.99,36.94774574]
[1748681960176,18.29809688,155.03,154.99,43.3994211]
[1748681961071,18.29809688,155.05,155.01,18.64964886]
[1748681963671,18.29809688,155.05,155.02,6.45078054]
[1748681964684,18.29809688,155.05,155.01,25.10069734]
[1748681964885,24.74770875,155.05,155.01,18.64964886]
[1748681965293,24.74770875,155.05,155.01,25.10082111]
[1748681965800,18.29809688,155.05,155.01,25.10082111]
[1748681966186,6.44828475,155.08,155.01,25.10082111]
[1748681966577,18.29809688,155.06,155.01,43.39891799]
[1748681967780,18.29809688,155.05,155.01,43.39891799]
[1748681969393,18.29809688,155.05,155.01,25.10082111]
[1748681970091,11.7147216,155.05,155.01,25.10082111]
[1748681973225,11.7147216,155.04,155.01,25.10082111]
[1748681976530,11.7147216,155.05,155.01,25.10082111]
[1748681976729,6.44884995,155.07,155.01,36.81554271]
[1748681976944,11.7147216,155.08,155.03,11.7147216]
[1748681977229,8.0242561,155.09,155.02,18.64964886]
[1748681977431,8.0242561,155.09,155.01,18.64964886]
[1748681977432,11.7147216,155.04,155.01,18.64964886]
[1748681979000,6.44969878,155.05,155.01,18.64964886]
[1748681979206,18.16442038,155.05,155.01,18.64964886]
[1748681979411,11.7147216,155.04,155.01,18.64964886]
[1748681983026,11.7147216,155.05,155.01,18.64964886]
[1748681985415,6.44954919,155.05,155.01,18.64964886]
[1748681985623,11.7147216,155.04,155.01,18.64964886]
[1748681988322,18.16427079,155.05,155.01,25.10083585]
[1748681988634,11.7147216,155.06,155.01,36.81555745]
[1748681989131,18.16364854,155.07,155.01,36.81555745]
[1748681989435,11.7147216,155.06,155.01,36.81555745]
[1748681994633,18.16389573,155.06,155.01,36.81555745]
[1748681996119,11.7147216,155.06,155.01,36.81555745]
[1748681999538,18.16387744,155.06,155.01,36.81555745]
[1748682000342,11.7147216,155.05,155.01,25.10083585]
[1748682001075,11.7147216,155.06,155.01,36.81555745]
[1748682002736,11.7147216,155.05,155.01,25.10083585]
[1748682005140,18.1638754,155.06,155.01,36.81555745]
[1748682005344,11.7147216,155.05,155.01,25.10083585]
[1748682007043,32.4487991,155.07,155.01,25.10083585]
[1748682007232,26.0,155.07,155.01,36.81555745]
[1748682007433,11.7147216,155.07,155.03,18.64964886]
[1748682008646,11.7147216,155.07,155.03,25.09978554]
[1748682010839,11.7147216,155.06,155.03,18.64964886]
[1748682012145,11.7147216,155.06,155.03,25.09999109]
[1748682012337,11.7147216,155.06,155.03,18.64964886]
[1748682014162,11.7147216,155.06,155.03,25.09999316]
[1748682014454,11.7147216,155.07,155.03,25.09999316]
[1748682019959,6.44847263,155.08,155.03,25.09999316]
[1748682020136,11.7147216,155.07,155.03,25.09999316]
[1748682021365,6.44847263,155.08,155.03,25.09999316]
[1748682021541,11.7147216,155.07,155.03,25.09999316]
[1748682021862,11.2147216,155.07,155.03,25.09999316]
[1748682022564,11.7147216,155.08,155.03,36.81471476]
[1748682024965,26.0,155.1,155.04,11.7147216]
[1748682025265,11.7147216,155.1,155.05,11.7147216]
[1748682026166,11.7147216,155.09,155.04,11.7147216]
[1748682026362,32.44715112,155.11,155.03,41.22590427]
[1748682026363,11.7147216,155.07,155.03,6.4503443]
[1748682026663,11.7147216,155.06,155.03,6.4503443]
[1748682027061,11.7147216,155.05,155.01,10.18]
[1748682027250,17.64897484,155.09,155.01,10.18]
[1748682027251,11.7147216,155.03,155.01,10.18]
[1748682028659,11.7147216,155.02,154.98,36.81655256]
[1748682029665,11.7147216,155.01,154.98,25.10183096]
[1748682031158,11.7147216,155.02,154.98,25.10183096]
[1748682031361,22.57045204,155.07,154.98,36.81655256]
[1748682031362,11.7147216,155.03,154.98,36.81655256]
[1748682033667,11.7147216,155.02,154.98,36.81655256]
[1748682035970,11.7147216,155.02,154.98,25.10183096]
[1748682041151,26.0,155.06,154.98,25.10183096]
[1748682041374,11.7147216,155.03,154.99,11.7147216]
[1748682041877,11.7147216,155.03,154.98,52.94766625]
[1748682044681,11.7147216,155.03,155.0,6.4516129]
[1748682045064,11.7147216,155.02,155.0,6.4516129]
[1748682046122,11.7147216,155.02,154.99,6.45202916]
[1748682046962,11.7147216,155.03,154.99,6.45202916]
[1748682048669,11.7147216,155.02,154.99,6.45202916]
[1748682048864,6.44960249,155.05,154.97,16.63281141]
[1748682048865,11.7147216,155.0,154.97,16.63281141]
[1748682049058,11.7147216,154.99,154.97,16.63281141]
[1748682049257,48.5111864,155.04,154.94,2.36545477]
[1748682049258,11.7147216,154.98,154.94,2.36545477]
[1748682049452,98.1111864,155.04,154.94,2.36545477]
[1748682049453,11.7147216,154.96,154.94,2.36545477]
[1748682049657,11.7147216,154.96,154.94,8.81938668]
[1748682050986,26.14216157,155.02,154.94,2.36545477]
[1748682050987,11.7147216,154.95,154.94,2.36545477]
[1748682051380,11.7147216,154.96,154.94,8.81956034]
[1748682051875,18.32361579,154.96,154.94,8.81956034]
[1748682055975,1.5056,155.03,154.95,36.97326465]
[1748682056182,18.32361579,154.99,154.95,36.97326465]
[1748682056878,18.32361579,154.98,154.96,6.45327826]
[1748682057073,18.32361579,154.99,154.96,6.45327826]
[1748682057588,18.32361579,155.0,154.96,6.45327826]
[1748682059889,18.32361579,155.01,154.96,18.32361579]
[1748682060090,18.32361579,155.0,154.96,18.32361579]
[1748682060670,18.32361579,155.0,154.96,36.97326465]
[1748682060870,18.32361579,155.0,154.97,6.45286184]
[1748682062275,33.9560307,155.03,154.97,6.45286184]
[1748682062496,18.32361579,155.0,154.97,6.45286184]
[1748682064282,18.32361579,155.0,154.95,34.45785264]
[1748682064283,18.32361579,154.99,154.95,6.45369474]
[1748682064598,6.45120032,155.01,154.94,8.81937412]
[1748682064599,18.32361579,154.97,154.94,8.81937412]
[1748682064894,18.32361579,154.95,154.93,16.65434011]
[1748682065094,18.32361579,154.95,154.93,6.45434011]
[1748682065985,18.32361579,154.95,154.9,53.11260845]
[1748682065986,18.32361579,154.95,154.91,24.77897696]
[1748682067182,18.32361579,154.95,154.91,25.10501003]
[1748682068895,18.32361579,154.94,154.91,6.45536117]
[1748682069083,18.32361579,154.93,154.91,6.45536117]
[1748682069602,18.32361579,154.96,154.92,18.32361579]
[1748682070177,18.32361579,154.96,154.93,6.45452785]
[1748682070704,18.32361579,154.95,154.93,6.45452785]
[1748682071078,18.32361579,154.95,154.92,6.45477986]
[1748682071498,18.32361579,154.94,154.91,6.45528793]
[1748682071702,18.32361579,154.93,154.9,6.45564104]
[1748682072080,18.32361579,154.94,154.9,6.45564104]
[1748682072878,18.32361579,154.93,154.9,6.45564104]
[1748682073375,18.32361579,154.93,154.89,28.50361579]
[1748682073603,18.32361579,154.92,154.89,16.63605466]
[1748682074693,18.32361579,154.9,154.86,6.45744543]
[1748682074896,6.45496381,154.92,154.86,6.45744543]
[1748682074897,18.32361579,154.89,154.86,6.45744543]
[1748682075397,18.32361579,154.91,154.86,24.78106122]
[1748682075597,18.32361579,154.9,154.86,6.45744543]
[1748682075801,18.32361579,154.91,154.86,24.78106122]
[1748682076784,18.32361579,154.92,154.88,18.32361579]
[1748682077402,18.32361579,154.92,154.87,36.97326465]
[1748682077793,17.68503788,154.95,154.88,18.32361579]
[1748682077794,18.32361579,154.93,154.88,18.32361579]
[1748682078405,18.32361579,154.94,154.89,18.32361579]
[1748682078588,1.5465,154.97,154.9,18.32361579]
[1748682078589,18.32361579,154.95,154.9,18.32361579]
[1748682078993,18.32361579,154.95,154.88,39.4]
[1748682078994,18.32361579,154.96,154.92,6.45494448]
[1748682079506,18.32361579,154.95,154.92,6.45494448]
[1748682081096,18.32361579,154.95,154.91,6.45536117]
[1748682081489,18.32361579,154.96,154.91,24.77897696]
[1748682081894,18.32361579,154.97,154.92,36.97326465]
[1748682082090,10.18,154.99,154.92,36.97326465]
[1748682082091,18.32361579,154.98,154.93,18.32361579]
[1748682082515,18.32361579,155.0,154.95,18.32361579]
[1748682082705,1.6274,155.01,154.95,18.32361579]
[1748682082895,19.95101579,155.01,154.96,18.32361579]
[1748682083209,19.95101579,155.01,154.97,6.45286184]
[1748682083392,18.32361579,155.02,154.97,24.77647763]
[1748682086398,18.32361579,155.01,154.97,18.64964886]
[1748682086715,27.6274,155.05,154.96,6.45327826]
[1748682086716,18.32361579,154.99,154.96,6.45327826]
[1748682087091,18.32361579,155.0,154.96,6.45327826]
[1748682087287,18.32361579,155.0,154.96,24.77689405]
[1748682087517,18.32361579,155.01,154.96,24.77689405]
[1748682087818,18.32361579,155.0,154.96,24.77689405]
[1748682089410,18.32361579,155.0,154.96,6.45327826]
[1748682090193,18.32361579,155.0,154.96,24.77689405]
[1748682090516,18.32361579,155.01,154.96,24.77689405]
[1748682092803,24.77509565,155.01,154.96,24.77689405]
[1748682093811,18.32361579,155.01,154.96,24.77689405]
[1748682094622,18.32361579,155.0,154.96,24.77689405]
[1748682097243,18.32361579,154.99,154.95,53.60687187]
[1748682097435,18.32361579,154.99,154.95,35.28325608]
[1748682097912,18.32361579,154.98,154.95,10.18]
[1748682098117,18.32361579,154.98,154.94,24.7776185]
[1748682098514,18.32361579,154.98,154.94,18.32361579]
[1748682098717,18.32361579,154.96,154.91,134.95326465]
[1748682098917,18.32361579,154.95,154.91,16.63521946]
[1748682099618,18.32361579,154.94,154.9,6.45559381]
[1748682099928,18.32361579,154.93,154.9,6.45559381]
[1748682100528,18.32361579,154.94,154.9,6.45559381]
[1748682101727,18.32361579,154.94,154.9,24.7792096]
[1748682102324,18.32361579,154.94,154.9,6.45559381]
[1748682103313,18.32361579,154.94,154.9,24.7792096]
[1748682104703,18.32361579,154.95,154.91,36.97326465]
[1748682105010,18.32361579,154.97,154.93,18.32361579]
[1748682106027,18.32361579,154.97,154.93,24.7778071]
[1748682106623,27.5166,154.99,154.93,24.7778071]
[1748682106624,18.32361579,154.98,154.93,24.7778071]
[1748682107009,24.7762126,154.98,154.93,24.7778071]
[1748682107232,19.84021579,154.99,154.94,18.32361579]
[1748682107432,18.32361579,154.99,154.94,18.32361579]
[1748682107936,24.77571882,154.99,154.94,18.32361579]
[1748682109035,18.32361579,154.98,154.92,10.18]
[1748682109214,18.32361579,154.98,154.94,18.32361579]
[1748682109535,18.32361579,154.98,154.93,24.77799787]
[1748682109737,18.32361579,154.98,154.93,18.32361579]
[1748682109930,18.32361579,154.95,154.92,10.18]
[1748682110129,18.32361579,154.95,154.9,24.77922645]
[1748682110632,18.32361579,154.95,154.91,18.32361579]
[1748682111242,18.32361579,154.95,154.91,24.7787862]
[1748682112441,24.77698771,154.96,154.91,24.7787862]
[1748682117236,18.32361579,154.96,154.91,24.7787862]
[1748682117954,24.77691507,154.96,154.91,24.7787862]
[1748682118333,18.32361579,154.95,154.91,24.7787862]
[1748682119557,18.32361579,154.95,154.91,6.45517041]
[1748682120056,18.32361579,154.95,154.91,24.7787862]
[1748682120242,24.77731671,154.95,154.91,6.45517041]
[1748682120437,18.32361579,154.95,154.91,6.45517041]
[1748682126436,24.77739001,154.95,154.91,6.45517041]
[1748682126634,18.32361579,154.92,154.88,10.18]
[1748682127344,18.32361579,154.91,154.88,10.18]
[1748682127732,18.32361579,154.91,154.86,24.78081451]
[1748682128049,18.32361579,154.93,154.88,18.32361579]
[1748682129152,18.32361579,154.93,154.89,6.45619471]
[1748682129751,24.77777451,154.94,154.89,24.7798105]
[1748682130645,18.32361579,154.94,154.89,24.7798105]
[1748682134751,18.32361579,154.94,154.9,18.64964886]
[1748682135059,28.48361579,154.96,154.91,18.32361579]
[1748682135272,18.32361579,154.97,154.92,18.32361579]
[1748682135446,18.32361579,154.97,154.93,6.45452785]
[1748682136065,18.85882217,154.98,154.93,6.45452785]
[1748682136247,18.32361579,154.97,154.93,6.45452785]
[1748682136763,18.32361579,154.97,154.93,18.32361579]
[1748682137282,10.8482025,154.98,154.94,18.32361579]
[1748682137579,18.32361579,155.0,154.95,18.32361579]
[1748682138439,18.32361579,154.99,154.94,18.32361579]
[1748682138639,18.32361579,154.98,154.93,36.97326465]
[1748682138835,18.32361579,154.98,154.94,6.45411126]
[1748682139472,18.32361579,154.99,154.94,24.77772705]
[1748682139861,18.32361579,154.98,154.94,24.77772705]
[1748682142471,18.32361579,154.99,154.94,24.77772705]
[1748682142768,18.32361579,154.99,154.96,6.45327826]
[1748682143464,1.5635,155.02,154.96,6.45327826]
[1748682143465,18.32361579,155.0,154.96,6.45327826]
[1748682143840,18.32361579,154.99,154.96,6.45327826]
[1748682144241,18.32361579,154.99,154.93,18.64964886]
[1748682144242,18.32361579,154.98,154.93,36.97326465]
[1748682144462,18.32361579,154.98,154.94,6.45403036]
[1748682145268,6.45216229,154.99,154.94,6.45403036]
[1748682145442,18.32361579,154.98,154.94,6.45403036]
[1748682147161,18.32361579,154.99,154.95,18.32361579]
[1748682147355,18.32361579,155.0,154.95,18.32361579]
[1748682148176,18.32361579,155.01,154.96,36.97326465]
[1748682148478,18.32361579,155.01,154.97,18.32361579]
[1748682148844,19.88711579,155.02,154.97,18.32361579]
[1748682149057,19.88711579,155.02,155.0,26.0]
[1748682149670,19.88711579,155.02,154.97,50.77631252]
[1748682149971,8.01429242,155.02,154.97,50.77631252]
[1748682150175,18.32361579,155.01,154.97,50.77631252]
[1748682152766,18.32361579,155.02,154.97,50.77631252]
[1748682153353,24.77461073,155.02,154.97,50.77631252]
[1748682153553,18.32361579,155.01,154.97,32.45269673]
[1748682156793,18.32361579,155.01,154.94,57.10177817]
[1748682156794,18.32361579,154.98,154.94,6.45394907]
[1748682157082,18.32361579,154.97,154.93,18.64964886]
[1748682157457,1.5038,155.0,154.91,18.64964886]
[1748682157458,18.32361579,154.95,154.91,18.64964886]
[1748682157793,18.32361579,154.94,154.91,18.64964886]
[1748682159757,18.32361579,154.95,154.91,18.64964886]
[1748682159957,18.32361579,154.95,154.91,25.10491502]
[1748682160469,18.32361579,154.96,154.91,43.42853081]
[1748682163798,18.32361579,154.96,154.91,25.10491502]
[1748682163980,18.32361579,154.96,154.91,43.42853081]
[1748682165576,18.32361579,154.97,154.93,18.64964886]
[1748682166994,18.32361579,154.97,154.94,6.45411126]
[1748682167163,18.32361579,154.97,154.93,25.10413323]
[1748682167370,18.32361579,154.96,154.93,25.10413323]
[1748682168766,18.32361579,154.96,154.93,18.64964886]
[1748682168966,18.32361579,154.96,154.92,6.4548052]
[1748682171872,18.32361579,154.95,154.91,25.10488806]
[1748682172081,18.32361579,154.95,154.91,18.64964886]
[1748682173881,18.32361579,154.94,154.9,6.45543574]
[1748682174092,18.32361579,154.93,154.9,18.64964886]
[1748682175483,18.32361579,154.93,154.9,25.1054012]
[1748682175688,18.32361579,154.93,154.9,18.64964886]
[1748682175886,18.32361579,154.93,154.9,25.10540012]
[1748682176695,18.32361579,154.93,154.9,18.64964886]
[1748682178102,18.32361579,154.93,154.9,25.10538367]
[1748682178281,18.32361579,154.93,154.85,103.29726938]
[1748682178282,18.32361579,154.92,154.85,103.29726938]
[1748682178482,18.32361579,154.9,154.85,43.43112709]
[1748682178880,18.32361579,154.89,154.85,25.1075113]
[1748682179303,24.77944725,154.9,154.85,25.1075113]
[1748682179500,18.32361579,154.9,154.85,25.1075113]
[1748682180276,18.32361579,154.91,154.85,43.43112709]
[1748682180481,18.32361579,154.93,154.88,18.32361579]
[1748682181230,18.32361579,154.94,154.9,6.45577792]
[1748682182395,18.32361579,154.95,154.91,18.64964886]
[1748682182705,18.32361579,154.96,154.91,36.97326465]
[1748682183490,18.32361579,154.96,154.92,6.45494448]
[1748682184101,18.32361579,154.97,154.92,24.77856027]
[1748682186003,1.5104,154.98,154.93,36.97326465]
[1748682186219,6.45119669,155.01,154.95,18.32361579]
[1748682186389,18.32361579,155.0,154.95,18.32361579]
[1748682186716,18.32361579,154.98,154.94,10.14]
[1748682186892,6.45119669,155.01,154.94,10.14]
[1748682186893,18.32361579,154.97,154.94,10.14]
[1748682187413,18.32361579,154.98,154.94,10.14]
[1748682187805,18.32361579,154.97,154.94,10.14]
[1748682188115,18.32361579,154.97,154.9,44.32361579]
[1748682188116,18.32361579,154.95,154.9,44.32361579]
[1748682188616,6.4531778,154.97,154.89,28.78964886]
[1748682188617,18.32361579,154.94,154.89,53.56929625]
[1748682191595,18.32361579,154.94,154.89,35.24568046]
[1748682191794,18.32361579,154.94,154.89,53.56929625]
[1748682192205,24.77786263,154.94,154.89,53.56929625]
[1748682192790,18.32361579,154.94,154.89,53.56929625]
[1748682194619,1.5019,154.96,154.91,18.64964886]
[1748682194820,18.32361579,154.97,154.92,18.32361579]
[1748682195402,6.45244547,154.98,154.92,18.32361579]
[1748682195596,18.32361579,154.97,154.92,18.32361579]
[1748682196019,18.32361579,154.98,154.93,43.4277925]
[1748682196523,18.32361579,154.98,154.94,18.32361579]
[1748682196704,18.32361579,155.0,154.95,18.32361579]
[1748682197215,24.77530572,155.0,154.95,18.32361579]
[1748682198025,18.32361579,154.99,154.95,6.45369474]
[1748682200928,24.7756796,154.99,154.95,6.45369474]
[1748682201237,24.77528841,155.0,154.95,24.77731053]
[1748682205531,18.32361579,155.0,154.95,24.77731053]
[1748682205825,24.77539955,155.0,154.95,24.77731053]
[1748682206034,18.32361579,154.99,154.95,6.45369474]
[1748682207723,18.32361579,155.0,154.95,24.77731053]
[1748682209836,24.77526613,155.0,154.95,24.77731053]
[1748682210538,18.32361579,155.01,154.96,18.32361579]
[1748682210718,18.32361579,155.01,154.95,24.77731053]
[1748682211145,24.77510653,155.01,154.95,24.77731053]
[1748682211313,18.32361579,155.0,154.95,24.77731053]
[1748682213563,18.32361579,155.01,154.96,36.97326465]
[1748682213853,18.32361579,155.02,154.97,18.32361579]
[1748682214153,18.32361579,155.03,154.98,36.97326465]
[1748682214514,18.32361579,155.03,154.98,43.42538303]
[1748682214717,18.32361579,155.01,154.95,19.93861579]
[1748682214916,18.32361579,155.01,154.96,18.64964886]
[1748682215146,18.32361579,155.01,154.96,36.97326465]